Cogmind - Beta 16.1 @@@ ROGUE MODE // 2026.03.19 @ 16:24:21 Player: ae Result: Destroyed by Triborg with Siege Cannon Performance ------------- Evolutions (0) 0 Regions Visited (4) 800 Robots Destroyed (41) 205 Value Destroyed (1020) 1020 Prototype IDs (26) 520 Alien Tech Used (0) 0 Bonus (2172) 2172 TOTAL SCORE: 4717 Bonus ------- Delivered SUBCON Basin 2000 Registered with UFD 300 Friendly Fire -128 Cogmind --------- Core Integrity 0/250 Matter 300/300 Energy 99/100 System Corruption 0% Temperature Cool (0) Movement Rolling (100) Location -9/Scraptown Parts ------- > --- POWER (1) -------- (None) > --- PROPULSION (2) --- Light Treads Compact Wheel > --- UTILITY (2) ------ (None) > --- WEAPON (2) ------- Scythe Scythe > --- INVENTORY (5) ---- Light Treads Subdweller Monowheel Makeshift Light Armor Plating Scrapoid Pod Peak State ------------ > --- POWER ------------ Ion Engine > --- PROPULSION ------- Light Treads Subdweller Monowheel > --- UTILITY ---------- Humpback > --- WEAPON ----------- Subdweller Laser Subdweller Beam Cannon > --- INVENTORY -------- Subdweller Power Source Subdweller Power Source Subdweller Power Source Light Treads Subdweller Monowheel Subdweller Monowheel Subdweller Monowheel Subdweller Optics Power Shielding Hardened Light Armor Plating Hardened Light Armor Plating Makeshift Light Armor Plating Makeshift Thermal Plating Rainbow Chip Subdweller Beam Cannon Subdweller Beam Cannon Subdweller Machine Gun Subdweller Machine Gun Subdweller Machine Gun Grenade Launcher SUBCON Basin [Rating: 33] Favorites ----------- Power Ion Engine Engine Ion Engine Propulsion Compact Wheel Treads Light Treads Wheel Compact Wheel Utility Humpback Storage Humpback Protection Hardened Light Armor Plating Weapon Subdweller Beam Cannon Energy Gun Subdweller Laser Energy Cannon Subdweller Beam Cannon Ballistic Gun Autogun Ballistic Cannon Improved Light Cannon Launcher Grenade Launcher Slashing Weapon Scythe Build | -11 -10 -10 -9 -9 ------- Run | Yrd Mat Sub Rec Scr Slots Evolved . | . . . . . Power . | . . . . . Propulsion . | . . . . . Utility . | . . . . . Weapon . | . . . . . Parts Attached 36 | 5 8 15 2 6 Power 1 | 1 . . . . Engine 1 | 1 . . . . Core . | . . . . . Reactor . | . . . . . Propulsion 12 | 2 . 4 2 4 Treads 4 | 2 . 1 1 . Leg . | . . . . . Wheel 8 | . . 3 1 4 Hover . | . . . . . Flight . | . . . . . Utility 7 | 1 2 4 . . Device . | . . . . . Storage 4 | 1 1 2 . . Processor . | . . . . . Hackware . | . . . . . Protection 3 | . 1 2 . . Artifact . | . . . . . Weapon 16 | 1 6 7 . 2 Energy Gun 4 | . 1 3 . . Energy Cannon 2 | . . 2 . . Ballistic Gun 5 | 1 4 . . . Ballistic Cannon 1 | . . 1 . . Launcher 2 | . 1 1 . . Special Weapon . | . . . . . Impact Weapon . | . . . . . Slashing Weapon 2 | . . . . 2 Piercing Weapon . | . . . . . Special Melee Weapon . | . . . . . Unidentified Prototypes . | . . . . . Parts Lost 16 | . . . . 16 Power 1 | . . . . 1 Propulsion 1 | . . . . 1 Utility 7 | . . . . 7 Weapon 5 | . . . . 5 Highest Loss Streak 14 | . . . . 14 To Critical Strikes 2 | . . . . 2 Average Backups 24 | 6 8 19 20 28 Power 2 | . 1 2 3 3 Propulsion 3 | 3 1 3 4 3 Utility 9 | . 2 7 7 12 Weapon 7 | 1 2 5 6 9 Tool/Special . | . . . . . Unused Backups 34 | . 6 7 . 21 Power 5 | . . 2 . 3 Propulsion 4 | . 4 . . . Utility 12 | . . 4 . 8 Weapon 12 | . 2 1 . 9 Tool/Special 1 | . . . . 1 Average Slot Usage (%) 80 | . 94 91 85 73 Engine 13 | . 13 14 14 13 Treads 10 | . 27 19 14 4 Wheel 17 | . . 8 14 23 Storage 14 | . 14 14 14 14 Protection 2 | . 10 5 . . Energy Gun 5 | . 1 16 9 . Energy Cannon 13 | . . 7 18 16 Ballistic Gun 2 | . 21 3 . . Peak Build Rating 33 | 5 11 33 33 21 Average Rating 16 | 4 9 15 31 16 On Entrance 12 | . 5 11 33 14 Avg Prop Armor Cover (%) 11 | . . 11 11 11 Naked Turns . | . . . . . Heaviest Build 221 | 11 26 217 221 221 Greatest Support 40 | 40 40 40 20 36 Greatest Overweight (x) 70 | 1 1 10 13 70 Average Overweight (x) 8 | . . 4 12 14 Largest Inventory Capacity 35 | 8 10 35 35 35 Average Capacity 30 | 7 9 24 35 35 Most Carried 35 | 7 9 35 35 35 Average Carried 26 | 6 8 20 34 30 Final Capacity 35 | 8 10 35 35 5 Final Carried 35 | 7 9 35 21 5 Class Distribution -------------------- 81% | Hauler-Mutant 18% | Mutant Dominant Class ---------------- Mutant | -10/Materials Hauler-Mutant | -10/Subcaves Hauler-Mutant | -9/Recycling Hauler-Mutant | -9/Scraptown Resources | -11 -10 -10 -9 -9 ----------- Run | Yrd Mat Sub Rec Scr Matter Collected 1187 | 304 282 411 105 85 Remotely . | . . . . . Salvage Created 1392 | 169 379 446 328 70 Parts 84 | 4 33 26 16 5 Haulers Intercepted . | . . . . . Recyclers Shooed 2 | . 2 . . . Parts Field Recycled . | . . . . . Retrieved Matter . | . . . . . Parts Self-Destructed 5 | . . 5 . . Prevented . | . . . . . Parts Restored . | . . . . . Kills | -11 -10 -10 -9 -9 ------- Run | Yrd Mat Sub Rec Scr Combat Hostiles Destroyed 30 | . 15 12 2 1 Melee 1 | . . . . 1 Guns 16 | . 12 4 . . Cannons 5 | . . 4 1 . AOE 7 | . 3 4 . . Classes Destroyed 10 | 3 3 3 1 . Worker 2 | 2 . . . . Tunneler 1 | 1 . . . . Recycler 3 | 1 . . 2 . Operator 2 | . 2 . . . Turret 2 | . . 2 . . Swarmer 11 | . 9 2 . . Grunt 6 | . 6 . . . Sentry 3 | . . 1 2 . Subdweller 9 | . . 9 . . Scrapper 2 | . . . 1 1 Best Kill Streak 4 | 2 4 4 2 1 Combat Bots Only 4 | . 4 3 2 1 Max Kills in Single Turn 3 | 1 3 2 1 1 Gunslinging . | . . . . . Exploded 3 | . 3 2 . . Melee 1 | . . . . 1 Uniques/NPCs Destroyed . | . . . . . Combat | -11 -10 -10 -9 -9 -------- Run | Yrd Mat Sub Rec Scr Hostile Shots Fired 123 | . 51 54 4 14 Missed 36 | . 15 20 . 1 Hits 87 | . 36 34 4 13 Melee 5 | . . . . 5 Projectile 82 | . 36 34 4 8 Critical Strikes 2 | . . . . 2 Damage Taken 1374 | . 330 539 57 448 Core 258 | . 92 72 13 81 Absorbed by Shields . | . . . . . Regen/Repaired (Parts) 45 | . 45 . . . Core Remaining (%) 100 | 100 . . . . Volleys Fired 177 | 54 48 63 5 7 Largest 2 | 1 2 2 2 1 Hottest 160 | 20 60 140 160 80 Shots Fired 247 | 54 80 97 9 7 Gun 190 | 54 79 57 . . Cannon 48 | . . 32 9 7 Launcher 9 | . 1 8 . . Special . | . . . . . Kinetic 156 | 54 73 29 . . Thermal 82 | . . 66 9 7 Explosive 3 | . 1 2 . . Electromagnetic 6 | . 6 . . . Robot Hit Streak 23 | 22 23 17 6 . Robot Miss Streak 8 | 2 8 3 1 . Penetration Max . | . . . . . Secondary Targets 2 | . 2 . . . Max Gunslinging Chain 1 | . 1 . . . Shots Hit Robots 158 | 45 48 58 6 1 Core Hits 67 | 11 25 26 4 1 Critical Kills 1 | . . . 1 . Critical Parts Destroyed 5 | 1 3 1 . . Critical Strikes 6 | 1 3 1 1 . Meltdown 1 | . . . 1 . Destroy 5 | 1 3 1 . . Melee Attacks 5 | . . . . 5 Impact . | . . . . . Slashing 5 | . . . . 5 Piercing . | . . . . . Sneak Attacks . | . . . . . Combat Hostiles . | . . . . . Follow-up Attacks . | . . . . . Damage Inflicted 3167 | 360 673 1905 199 30 Guns 1670 | 360 541 769 . . Cannons 444 | . . 245 199 . Explosions 1014 | . 124 890 . . Melee 30 | . . . . 30 Ramming 9 | . 8 1 . . Kinetic 1776 | 360 519 897 . . Thermal 992 | . . 793 199 . Explosive 338 | . 124 214 . . Electromagnetic 22 | . 22 . . . Impact . | . . . . . Slashing 30 | . . . . 30 Piercing . | . . . . . Highest Corruption 1 | . 1 1 1 1 Average Corruption 1 | . 1 1 1 1 Corruption Purged . | . . . . . Corruption Blocked . | . . . . . Effects 40 | . 2 25 13 . Message Errors 5 | . . 1 4 . Matter Fused 10 | . . 7 3 . Heat Flow Errors 5 | . 1 4 . . Energy Discharges 4 | . . 4 . . Parts Fused 1 | . . 1 . . Data Loss (minor) 9 | . . 6 3 . Data Loss (major) 2 | . 1 1 . . Misfires 3 | . . 1 2 . Alerts 1 | . . . 1 . Overload Shots . | . . . . . Overflow Damage 39 | . 28 9 2 . Projectiles 11 | . . 9 2 . Explosions 28 | . 28 . . . Melee . | . . . . . Knockbacks . | . . . . . Impact . | . . . . . Kinetic . | . . . . . Secondary . | . . . . . Self-Inflicted Damage . | . . . . . Shots . | . . . . . Rammed 3 | . 2 1 . . Targets Rammed 3 | . 2 1 . . Kicked . | . . . . . Crushed . | . . . . . Highest Temperature 280 | . 213 135 108 280 Average Temperature 51 | . 38 41 45 145 Received Heat Transfer 228 | . 75 99 18 36 Siege Activations . | . . . . . Martial Activations . | . . . . . Shielding Activations . | . . . . . Robots Disrupted . | . . . . . Combat Hostiles . | . . . . . Robots Corrupted . | . . . . . Combat Hostiles . | . . . . . Parts Fried . | . . . . . Impact Corruptions . | . . . . . Robots Melted 1 | . . . 1 . Combat Hostiles 1 | . . . 1 . Parts Melted 1 | . . 1 . . Heat Transferred 1255 | . . 1008 247 . Parts Sabotaged . | . . . . . Parts Stolen . | . . . . . Parts Stripped . | . . . . . Power Chain Reactions . | . . . . . Alert | -11 -10 -10 -9 -9 ------- Run | Yrd Mat Sub Rec Scr Maximum Alert Level . | . . . . . Low Security (%) 100 | 100 100 . 100 . Level 1 . | . . . . . Level 2 . | . . . . . Level 3 . | . . . . . Level 4 . | . . . . . Level 5 . | . . . . . High Security . | . . . . . Max Security . | . . . . . Peak Influence 182 | 10 182 . 33 . Initial 3 | . 3 . . . Average 38 | . 79 . 2 . Influence Increases 626 | 20 419 100 87 . Destroy 0b10 Robot/C 440 | . 300 100 40 . Destroy 0b10 Robot/NC 40 | 20 10 . 10 . Destroy Leader 50 | . 50 . . . Successful Hack 32 | . 11 . 21 . Disable Machine 45 | . 30 . 15 . Destroy Structure 4 | . 3 . 1 . Lose Combat Pursuer 15 | . 15 . . . Influence Decreases 626 | 15 395 129 87 . Entered New Map 17 | . 2 15 . . Time Decay 609 | 15 393 114 87 . Squads Dispatched 1 | . 1 . . . Investigation 1 | . 1 . . . Extermination . | . . . . . Reinforcement . | . . . . . Assault . | . . . . . Garrison . | . . . . . Intercept . | . . . . . Searches Triggered . | . . . . . Construction Impeded . | . . . . . Haulers Reinforced . | . . . . . Active Scanning Responses . | . . . . . Cargo Convoy Interrupts . | . . . . . Stealth | -11 -10 -10 -9 -9 --------- Run | Yrd Mat Sub Rec Scr Distress Signals 3 | . 3 . . . Communications Jammed . | . . . . . Distress Signals . | . . . . . Times Spotted 39 | . 19 12 2 6 Peak Tracking Total 13 | . 5 4 1 13 Tactical Retreats 1 | . 1 . . . Traps | -11 -10 -10 -9 -9 ------- Run | Yrd Mat Sub Rec Scr Traps Triggered 2 | . 2 . . . Indirectly . | . . . . . Trap Hack Attempts . | . . . . . Triggered . | . . . . . Disarmed . | . . . . . Reprogrammed . | . . . . . Reused . | . . . . . Traps Extracted . | . . . . . Installed . | . . . . . Triggered . | . . . . . Most Traps Carried 1 | . . . . 1 Machines | -11 -10 -10 -9 -9 ---------- Run | Yrd Mat Sub Rec Scr Machines Disabled 5 | . 2 1 1 1 Max in Single Turn 1 | . 1 1 1 1 Machines Repaired . | . . . . . Machines Dismantled . | . . . . . Machines Sabotaged . | . . . . . Overloaded Fab Kills . | . . . . . Hacking | -11 -10 -10 -9 -9 --------- Run | Yrd Mat Sub Rec Scr Machines Accessed 16 | . 5 4 4 3 Terminals 6 | . 3 . 3 . Fabricators . | . . . . . Repair Stations 1 | . 1 . . . Recycling Units 1 | . 1 . . . Scanalyzers . | . . . . . Garrison Access . | . . . . . Total Hacks 50 | . 18 8 14 10 Successful 34 | . 6 8 10 10 Failed 16 | . 12 . 4 . Catastrophic 1 | . 1 . . . Database Lockouts . | . . . . . Manual 11 | . 3 . 8 . Terminals 19 | . 10 . 9 . Fabricators . | . . . . . Repair Stations 5 | . 5 . . . Recycling Units 3 | . 3 . . . Scanalyzers . | . . . . . Garrison Access . | . . . . . Terminal Hacks 30 | . 3 8 9 10 Record 19 | . . 5 5 9 Prototype ID Bank 4 | . 1 . 3 . Open Door 1 | . . 1 . . Locate Traps 1 | . . . 1 . Registered Components 1 | . 1 . . . Zone Layout 1 | . 1 . . . Proto ID Catalog 2 | . . 1 . 1 Release Object 1 | . . 1 . . Fabricator Hacks . | . . . . . Repair Station Hacks 3 | . 3 . . . Scan Component 2 | . 2 . . . Repair 1 | . 1 . . . Recycling Unit Hacks . | . . . . . Scanalyzer . | . . . . . Garrison Access Hacks . | . . . . . Unauthorized Hacks 1 | . . . 1 . Terminals 1 | . . . 1 . Botnet 1 | . . . 1 . Fabricators . | . . . . . Repair Stations . | . . . . . Recycling Units . | . . . . . Scanalyzers . | . . . . . Garrison Access . | . . . . . Data Cores Recovered 2 | . 2 . . . Used 1 | . 1 . . . Hacking Detections 8 | . 5 . 3 . Full Trace Events 1 | . 1 . . . Feedback Events . | . . . . . Feedback Blocked . | . . . . . Robot Schematics Acquired . | . . . . . Robots Built . | . . . . . Authchips . | . . . . . Time . | . . . . . Total Robot Build Rating . | . . . . . Part Schematics Acquired . | . . . . . Parts Built . | . . . . . Authchips . | . . . . . Time . | . . . . . Total Part Build Rating . | . . . . . Part Studies Acquired . | . . . . . Parts Repaired 1 | . 1 . . . Time 36 | . 36 . . . Parts Recycled . | . . . . . Recycled Matter . | . . . . . Retrieved Matter . | . . . . . Retrieved Components . | . . . . . Parts Scanalyzed . | . . . . . Part Schematics Acquired . | . . . . . Parts Damaged . | . . . . . Bothacking | -11 -10 -10 -9 -9 ------------ Run | Yrd Mat Sub Rec Scr Used RIF Installer . | . . . . . Robots Hacked . | . . . . . Non-combat . | . . . . . Combat . | . . . . . Robot Hacks Applied . | . . . . . Relay Couplers Released . | . . . . . Fabnet Peak Effective % . | . . . . . Robots Rewired . | . . . . . Allies Hacked . | . . . . . Hacks Repelled . | . . . . . Allies | -11 -10 -10 -9 -9 -------- Run | Yrd Mat Sub Rec Scr Total Allies . | . . . . . Largest Group . | . . . . . Highest-Rated Group . | . . . . . Highest-Rated Ally . | . . . . . Total Orders . | . . . . . Ally Attacks . | . . . . . Total Damage . | . . . . . Kills . | . . . . . Allies Corrupted . | . . . . . Allies Melted . | . . . . . Intel | -11 -10 -10 -9 -9 ------- Run | Yrd Mat Sub Rec Scr Active Infowar (turns) . | . . . . . Robot Analysis Total . | . . . . . Derelict Logs Recovered 7 | . . 2 . 5 Drone Launches . | . . . . . Drone Recoveries . | . . . . . Exploration | -11 -10 -10 -9 -9 ------------- Run | Yrd Mat Sub Rec Scr Turns Passed 16416 | 252 1081 4234 981 9868 Spaces Moved 4771 | 89 551 1738 331 2062 Core 146 | 9 . . . 137 Treads 1610 | 80 551 979 . . Legs . | . . . . . Wheels 3015 | . . 759 331 1925 Hover . | . . . . . Flight . | . . . . . Fastest Speed 50 | 50 160 120 210 165 Average Speed 310 | 151 160 181 277 470 Slowest Speed 3550 | 160 240 240 295 3550 Overloaded Moves . | . . . . . Propulsion Burnouts . | . . . . . Robots Hopped . | . . . . . Potential Cave-ins 10 | . . 2 . 8 Cave-ins Triggered . | . . . . . Exploration Rate (%) 71 | 5 86 93 81 91 Regions Visited 4 Branch Regions 3 Pre-discovered Areas 8 | . . 4 . 4 Known Exits Taken . | . . . . . Unknown Exits Taken 4 | 1 1 1 1 . Scrap Searched 8 | . . 3 . 5 Spaces Dug 6 | . . 3 . 3 Terrain Destroyed 86 | . 3 74 1 8 Melee 2 | . . . . 2 Projectile 16 | . . 9 1 6 AOE 68 | . 3 65 . . Terrain Rammed . | . . . . . Walls Destroyed . | . . . . . Machines Disabled . | . . . . . Actions | -11 -10 -10 -9 -9 --------- Run | Yrd Mat Sub Rec Scr Total 6178 | 160 685 2727 391 2215 Wait 1047 | 6 54 843 42 102 Move 4767 | 88 550 1737 330 2062 Hop . | . . . . . Pick Up 79 | 7 9 37 5 21 Fast Attach 15 | 5 5 4 . 1 Attach 3 | . 1 . . 2 Detach 2 | . 1 1 . . Swap 29 | . 5 15 3 6 Drop 51 | . 10 26 6 9 Fire 177 | 54 48 63 5 7 Melee 5 | . . . . 5 Ram . | . . . . . Kick . | . . . . . Crush 3 | . 2 1 . . Escape Stasis . | . . . . . Rewire . | . . . . . Trap . | . . . . . Miscellaneous . | . . . . . Route ------- -11/Scrapyard -10/Materials (discovered 6 exits: [*Mat x3] / [*Min x2] / *Sub) -10/Subcaves (discovered 3 exits: [*Mat x2] / *Rec) -9/Recycling (discovered 2 exits: [*Fac] / *Scr) -9/Scraptown (discovered 1 exit: [*Fac]) History --------- Turn | Location | Event 11 | -11/Scrapyard | Discovered new exit (range 14) 253 | -11/Scrapyard | Entered Materials 309 | -10/Materials | Build established: Mutant 416 | -10/Materials | Discovered new exit (range 15) 736 | -10/Materials | Discovered new exit (range 11) 753 | -10/Materials | Derelicts attacked the area 877 | -10/Materials | Discovered new exit (range 15) 877 | -10/Materials | Discovered new exit (range 16) 988 | -10/Materials | Discovered new exit (range 4) 1136 | -10/Materials | Repaired Broken Ion Engine 1316 | -10/Materials | Discovered new exit (range 11) 1334 | -10/Materials | Entered Subcaves 1395 | -10/Subcaves | Ambushed by Subdwellers from Twisted Machinery 1497 | -10/Subcaves | Visited 4L-MR0's lab 1513 | -10/Subcaves | Found Rainbow Chip 1682 | -10/Subcaves | A swath of the cavern ceiling suddenly collapsed 1776 | -10/Subcaves | Visited Clippyterm 1781 | -10/Subcaves | Learned location of Deep Caves (-7) 2107 | -10/Subcaves | Discovered new exit (range 12) 2372 | -10/Subcaves | Discovered new exit (range 15) 2468 | -10/Subcaves | Discovered new exit (range 9) 2469 | -10/Subcaves | Shifting Twisted Machinery released Sub. Optics 2475 | -10/Subcaves | Shifting Twisted Machinery released Sub. Laser 2551 | -10/Subcaves | Learned location of Zion (-7) 2551 | -10/Subcaves | Met a Zionite searching for "candidates" 2960 | -10/Subcaves | Shifting Twisted Machinery released Mak. Light Armor Plating 2965 | -10/Subcaves | Shifting Twisted Machinery released Mak. Thermal Plating 3401 | -10/Subcaves | Build established: Hauler-Mutant 3446 | -10/Subcaves | Learned location of Mines (-10) 3574 | -10/Subcaves | Core integrity fell below 50% 5362 | -10/Subcaves | Found SUBCON Basin 5568 | -10/Subcaves | Entered Recycling 5924 | -9/Recycling | Discovered new exit (range 16) 6363 | -9/Recycling | Scanned before Scraplab entrance 6456 | -9/Recycling | Entered Scraplab 6546 | -9/Recycling | Discovered new exit (range 2) 6549 | -9/Recycling | Entered Scraptown 6555 | -9/Scraptown | System corruption cleaned by C-Scrubber 6939 | -9/Scraptown | Visited Cyclists 7027 | -9/Scraptown | Visited Shadow of the Wyrm 7113 | -9/Scraptown | Visited Awakened 7204 | -9/Scraptown | Visited SPCMW 7378 | -9/Scraptown | Visited Spacefarers 7511 | -9/Scraptown | Visited TADAMA 7584 | -9/Scraptown | Visited UFD Registry 7584 | -9/Scraptown | Registered with UFD as "Electrocell" 7679 | -9/Scraptown | Entered Cyclist Reading Room 7794 | -9/Scraptown | Learned location of Extension (-4) 8374 | -9/Scraptown | Scanned Subdweller tech in exchange for log data 8380 | -9/Scraptown | Learned location of 1 exit from Lower Caves 8386 | -9/Scraptown | Learned 8 Factory zone layouts 8389 | -9/Scraptown | Learned location of Armory (-4) 8392 | -9/Scraptown | Learned Research terminal intel 8489 | -9/Scraptown | Guru changed UFD alias to "Armortalker" 8566 | -9/Scraptown | Discovered new exit (range 11) 9415 | -9/Scraptown | Visited Science Guys 9534 | -9/Scraptown | Visited Supply Room 9740 | -9/Scraptown | Visited Derelict Rescue Squad 9769 | -9/Scraptown | Found DRS Beacon 9829 | -9/Scraptown | Visited Scrapoid Pod Storage 9844 | -9/Scraptown | Found Scrapoid Pod 9881 | -9/Scraptown | Visited Cartography Club 10347 | -9/Scraptown | Visited DA-N13 Charitable Foundation 10371 | -9/Scraptown | Found DCF Scrap (29 items) 10415 | -9/Scraptown | Visited LU-1G1's Boring Crew 10491 | -9/Scraptown | Visited Curators Association 15988 | -9/Scraptown | Visited Supply Room 16248 | -9/Scraptown | Attacked by Scraptown defenders 16255 | -9/Scraptown | Found Field Manipulator 16417 | -9/Scraptown | Destroyed by Triborg with Siege Cannon Last Messages --------------- 16413_ Siege Slug penetrates Earth. 16416_ Triborg exits siege mode. 16416_ Y5-4SW(r) follow-up attacks with Ripteeth. 16417_ Triborg activates siege mode. 16417_ Penetrated by Siege Slug. 16417_ Humpback destroyed. 16417_ Flak Cannon crushed and broken. 16417_ Weapon Shielding crushed and broken. 16417_ Enh. Optical Array crushed and broken. 16417_ Rainbow Chip crushed and broken. 16417_ EMP Blaster crushed and broken. 16417_ Autogun crushed and broken. 16417_ DRS Beacon crushed and broken. 16417_ Sub. Optics crushed and broken. 16417_ Flak Cannon crushed and broken. 16417_ Weapon Shielding crushed and broken. 16417_ Hrd. Light Armor Plating crushed and broken. 16417_ Vortex Trap crushed and broken. 16417_ Grenade Launcher crushed and broken. 16417_ Critical hit (Blast). Map ----- +----------------------------------------------------+ | "#" "" "#??????????????????????????????? | | """ "#" " "#??????????????????????????????? | | "#" "#??????????????????????????????? | | """"" ""#"" """"""#??????????????????????????????? | | #??????????????????????????????? | | #??????????????????????????????? | | #??????????????????????????????? | | #######"" """"#####??????????????????????????????? | | ??????#" "#??????????????????????????????????? | | #####?#" ""#??????????????????????????????????? | | """"#?#" """#??????????????????????????????????? | | ""#?#" """#??????????????????????????????????? | | "#?#"""""""#??????????????????????????????????? | | ""#?#########????????????#############?????????? | | """"#??????????????????????#"""""""""""#?????????? | | "####??????????????????????#""" X """""#?????????? | | ##########?????????????????#"""" """#?????????? | | ?? #?????????????????#"" "#?????????? | | #?""""??""????????#"""" """#???####### | | """"" #? "?" ?????????#"" " ""#???# "" | | """"" # " "? ??????????# ""#???#!"" | | """" # " "??????????# " "" ""#???#!"" | | # " " "? #???###?# "r ""j ""#???#! "" | | # " ???##*###"h TT #???#" " | | # ?????#*]*!!!! TT!= "#???#" | | #"""""???????#][@r[]!!###"%####???#### ## | | ###### ##### ######################!########### ## | | #???????#""" [""""""""""" "" | | #???????#" | | #???????#" | | #???????#" % | | #???????#" | | ############# #???#####" | | ????????????# #???#"""" """"""""""""" | | #####??##???# #???#"""" """"""""""""" | | """"##? ????# #???#"""" ""###### ### | | " " # " " ## #???#"""" ""#??? ? | | # " "" ## #???#"""" ""#?? | | """ # " " ## ###?#"""" ""#?? "" "" | | """ # "" ## ""#"#"""" ""# "" "" | | """ # " " ## """"#"""" ""# " " | | """ ## " " ## ""#######" "" "" | | """ ## " ## ###?????# "" "" | | ## " " ## #########" ""# " " | | " " ## ""# "" "? | | """"##"" ## ""#?? "" "" | | ############# ""#??? ? | | ????????????# ""#??? ? | | ############# ""###### ### | | """"""""""""" | +----------------------------------------------------+ Best States ------------- Heat Dissipation 25 Energy Generation 10 Energy Capacity 250 Matter Stores 300 Matter Capacity 300 Sight Range 16 Terrain Scan Density 10 Armor Coverage 150 Evasion (%) 40 Recoil Reduction 2 Item Schematics ----------------- None Robot Schematics ------------------ None Fabricated ------------ Nothing Repaired ---------- Ion Engine | 25% | -10/Materials | Broken Studied --------- None Alien Tech Used ----------------- None Achievements -------------- Inventory Pressure My Bad Challenges ------------ None Game ------ Seed DynamicCentriumStrikerail Manual? 0 Play Time 00:42:47 Cumulative 157.2 hours Start 2026.03.19 @ 11:33:52 End 2026.03.19 @ 16:24:21 Sessions 3 Manual Loads 0 Difficulty Rogue Special Mode None Game No. 100 Rogue 96 Adventurer 4 Explorer 0 Win Type - Total 11 Types 11/0/0/0/0/0/0/0/0/0 Lore% 81 Gallery% 57 Achievement% 52 Wizard Run 0 Options --------- Layout 0 ASCII 0 Keyboard 1 Movement Vi Keybinds 0 Fullscreen 0 Font 16/SmallcapsGlow Map View 76x50 Zoom Use 0% Tactical HUD 1 Map Filters NONE Filters NONE Steam 1 RUN: f17e7015-ba19-4d3e-ae08-30385d7c39e9